Cogmind - Beta 10.2 @@@ ROGUE MODE // 2021.06.12 @ 11:55:45 Player: Demise Result: Destroyed by D-53 Grenadier with Mini Grenade Launcher Performance ------------- Evolutions (0) 0 Regions Visited (2) 400 Robots Destroyed (23) 115 Value Destroyed (540) 540 Prototype IDs (0) 0 Alien Tech Used (0) 0 Bonus (0) 0 TOTAL SCORE: 1055 Bonus ------- None Cogmind --------- Core Integrity 0/250 Matter 298/300 Energy 152/250 System Corruption 0% Temperature Cool (0) Movement Core (650) Ox12 Location -10/Mines Parts ------- > --- POWER (1) -------- Ion Engine > --- PROPULSION (2) --- (None) > --- UTILITY (2) ------ Large Storage Unit Large Storage Unit > --- WEAPON (2) ------- (None) > --- INVENTORY (16) --- Medium Storage Unit Large Storage Unit Large Storage Unit Large Storage Unit Medium Armor Plating Medium Armor Plating Medium Armor Plating Medium Armor Plating Hacking Suite System Shield Minigun Rocket Launcher Missile Launcher Mining Laser Peak State ------------ > --- POWER ------------ Light Deuterium Engine > --- PROPULSION ------- Light Treads Light Treads > --- UTILITY ---------- Large Storage Unit Large Storage Unit > --- WEAPON ----------- Assault Rifle Minigun > --- INVENTORY -------- Ion Engine Light Treads Medium Storage Unit Large Storage Unit Large Storage Unit Large Storage Unit Signal Interpreter Medium Armor Plating Medium Armor Plating Medium Armor Plating Medium Armor Plating EM Pulse Gun Medium Laser Rocket Launcher Rocket Launcher Mining Laser [Rating: 13] Favorites ----------- Power Ion Engine Engine Ion Engine Propulsion Light Treads Treads Light Treads Utility Large Storage Unit Storage Large Storage Unit Protection Weapon Shielding Weapon Assault Rifle Energy Gun Medium Laser Ballistic Gun Assault Rifle Launcher Missile Launcher Build | -11 -10 -10 ------- Run | Scr Mat Min Slots Evolved . | . . . Power . | . . . Propulsion . | . . . Utility . | . . . Weapon . | . . . Parts Attached 32 | 4 16 12 Power 7 | . 5 2 Engine 7 | . 5 2 Core . | . . . Reactor . | . . . Propulsion 7 | 2 4 1 Treads 7 | 2 4 1 Leg . | . . . Wheel . | . . . Hover . | . . . Flight . | . . . Utility 4 | . 4 . Device . | . . . Storage 2 | . 2 . Processor . | . . . Hackware . | . . . Protection 2 | . 2 . Artifact . | . . . Weapon 14 | 2 3 9 Energy Gun 6 | 1 2 3 Energy Cannon . | . . . Ballistic Gun 6 | 1 1 4 Ballistic Cannon . | . . . Launcher 2 | . . 2 Special Weapon . | . . . Impact Weapon . | . . . Slashing Weapon . | . . . Piercing Weapon . | . . . Special Melee Weapon . | . . . Unidentified Prototypes . | . . . Parts Lost 8 | . 2 6 Power 1 | . . 1 Propulsion 4 | . 1 3 Utility . | . . . Weapon 3 | . 1 2 Highest Loss Streak 6 | . 1 6 Average Slot Usage (%) 95 | . 93 99 Engine 13 | . 13 14 Treads 27 | . 27 28 Storage 22 | . 19 28 Protection 2 | . 2 . Energy Gun 12 | . 14 7 Ballistic Gun 15 | . 13 20 Naked Turns . | . . . Heaviest Build 42 | 3 41 42 Greatest Support 40 | 3 40 40 Greatest Overweight (x) 1 | . 1 1 Average Overweight (x) . | . . . Largest Inventory Capacity 16 | 4 16 16 Average Capacity 13 | 4 12 16 Most Carried 16 | 4 16 16 Average Carried 11 | 2 10 15 Final Capacity 16 | 4 16 16 Final Carried 16 | 3 16 14 Class Distribution -------------------- 100% | Mutant Dominant Class ---------------- Mutant | -10/Materials Mutant | -10/Mines Resources | -11 -10 -10 ----------- Run | Scr Mat Min Matter Collected 821 | 249 357 215 Remotely . | . . . Salvage Created 793 | 113 611 69 Parts 47 | 6 39 2 Haulers Intercepted 1 | . 1 . Recyclers Shooed . | . . . Parts Field Recycled . | . . . Retrieved Matter . | . . . Parts Self-Destructed . | . . . Prevented . | . . . Kills | -11 -10 -10 ------- Run | Scr Mat Min Combat Hostiles Destroyed 33 | . 15 18 Guns 19 | . 15 4 AOE 14 | . . 14 Classes Destroyed 8 | 2 5 1 Builder 1 | . 1 . Tunneler 1 | 1 . . Hauler 1 | . 1 . Recycler 1 | 1 . . Watcher 1 | . 1 . Swarmer 6 | . 3 3 Grunt 12 | . 12 . Assembled 15 | . . 15 Best Kill Streak 14 | 2 3 14 Combat Bots Only 14 | . 3 14 Max Kills in Single Turn 5 | 1 1 5 Gunslinging . | . . . Exploded 5 | . . 5 Melee . | . . . Uniques/NPCs Destroyed . | . . . Combat | -11 -10 -10 -------- Run | Scr Mat Min Damage Taken 1600 | . 674 926 Core 263 | . 91 172 Absorbed by Shields . | . . . Core Remaining (%) 100 | 100 . . Volleys Fired 92 | 3 70 19 Largest 2 | 2 2 2 Hottest 70 | 60 70 60 Shots Fired 175 | 6 139 30 Gun 168 | 6 139 23 Cannon . | . . . Launcher 7 | . . 7 Special . | . . . Kinetic 86 | 3 70 13 Thermal 72 | 3 69 . Explosive 7 | . . 7 Electromagnetic 10 | . . 10 Robot Hit Streak 19 | 3 19 5 Robot Miss Streak 3 | 1 3 2 Penetration Max . | . . . Secondary Targets . | . . . Shots Hit Robots 109 | 4 85 20 Core Hits 62 | 3 32 27 Critical Hits . | . . . Critical Kills . | . . . Critical Parts Destroyed . | . . . Melee Attacks . | . . . Impact . | . . . Slashing . | . . . Piercing . | . . . Sneak Attacks . | . . . Combat Hostiles . | . . . Follow-up Attacks . | . . . Damage Inflicted 2316 | 47 1021 1248 Guns 1270 | 47 1021 202 Cannons . | . . . Explosions 1046 | . . 1046 Melee . | . . . Ramming . | . . . Kinetic 654 | 37 483 134 Thermal 548 | 10 538 . Explosive 1046 | . . 1046 Electromagnetic 68 | . . 68 Impact . | . . . Slashing . | . . . Piercing . | . . . Highest Corruption . | . . . Average Corruption . | . . . Corruption Purged . | . . . Overload Shots . | . . . Overflow Damage 12 | . . 12 Projectiles . | . . . Explosions 12 | . . 12 Melee . | . . . Knockbacks . | . . . Impact . | . . . Kinetic . | . . . Secondary . | . . . Self-Inflicted Damage 86 | . . 86 Shots 2 | . . 2 Rammed . | . . . Targets Rammed . | . . . Kicked . | . . . Crushed . | . . . Highest Temperature 96 | 15 96 25 Average Temperature 28 | 10 32 8 Received Heat Transfer 356 | . 336 20 Siege Activations . | . . . Robots Corrupted . | . . . Combat Hostiles . | . . . Parts Fried . | . . . Impact Corruptions . | . . . Robots Melted . | . . . Combat Hostiles . | . . . Parts Melted 1 | . 1 . Heat Transferred 1307 | 25 1282 . Parts Sabotaged . | . . . Parts Stolen . | . . . Parts Stripped . | . . . Power Chain Reactions . | . . . Missiles Intercepted . | . . . Alert | -11 -10 -10 ------- Run | Scr Mat Min Peak Influence 338 | 10 338 105 Initial 70 | . 6 70 Average 165 | 4 210 67 Maximum Alert Level 1 | . 1 . Low Security (%) 65 | 100 50 100 Level 1 34 | . 49 . Level 2 . | . . . Level 3 . | . . . Level 4 . | . . . Level 5 . | . . . High Security . | . . . Max Security . | . . . Squads Dispatched 6 | . 5 1 Investigation 5 | . 4 1 Extermination . | . . . Reinforcement 1 | . 1 . Assault . | . . . Garrison . | . . . Intercept . | . . . Construction Impeded . | . . . Haulers Reinforced . | . . . Stealth | -11 -10 -10 --------- Run | Scr Mat Min Distress Signals 4 | . 3 1 Communications Jammed . | . . . Distress Signals . | . . . Times Spotted 47 | . 25 22 Peak Tracking Total 15 | . 6 15 Tactical Retreats 2 | . 1 1 Traps | -11 -10 -10 ------- Run | Scr Mat Min Traps Triggered 2 | . 2 . Indirectly . | . . . Trap Hack Attempts . | . . . Triggered . | . . . Disarmed . | . . . Reprogrammed . | . . . Reused . | . . . Traps Extracted . | . . . Installed . | . . . Triggered . | . . . Machines | -11 -10 -10 ---------- Run | Scr Mat Min Machines Disabled 1 | . . 1 Max in Single Turn 1 | . . 1 Machines Sabotaged . | . . . Garrisons Compromised . | . . . Overloaded Fab Kills . | . . . Fab Network Shutdowns . | . . . Hacking | -11 -10 -10 --------- Run | Scr Mat Min Machines Accessed 8 | . 7 1 Terminals 5 | . 5 . Fabricators . | . . . Repair Stations 1 | . 1 . Recycling Units 1 | . 1 . Scanalyzers . | . . . Garrison Access . | . . . Total Hacks 32 | . 31 1 Successful 24 | . 23 1 Failed 7 | . 7 . Catastrophic . | . . . Database Lockouts 1 | . 1 . Manual 22 | . 22 . Terminals 21 | . 21 . Fabricators . | . . . Repair Stations 4 | . 4 . Recycling Units 6 | . 6 . Scanalyzers . | . . . Garrison Access . | . . . Terminal Hacks 9 | . 8 1 Robot Analysis 3 | . 3 . Open Door 1 | . . 1 Level Access Points 1 | . 1 . Branch Access Points 1 | . 1 . Terminal Index 1 | . 1 . Locate Traps 1 | . 1 . Zone Layout 1 | . 1 . Fabricator Hacks . | . . . Repair Station Hacks 4 | . 4 . Scan Component 2 | . 2 . Repair 2 | . 2 . Recycling Unit Hacks 1 | . 1 . Retrieve Components 1 | . 1 . Scanalyzer . | . . . Garrison Access Hacks . | . . . Unauthorized Hacks 10 | . 10 . Terminals 7 | . 7 . Track 1 | . 1 . Assimilate 1 | . 1 . Botnet 4 | . 4 . Operators 1 | . 1 . Fabricators . | . . . Repair Stations . | . . . Recycling Units 3 | . 3 . Reject 1 | . 1 . Recyclers 1 | . 1 . Mask 1 | . 1 . Scanalyzers . | . . . Garrison Access . | . . . Data Cores Recovered . | . . . Used . | . . . Hacking Detections 7 | . 7 . Full Trace Events 3 | . 3 . Feedback Events . | . . . Feedback Blocked . | . . . Robot Schematics Acquired . | . . . Robots Built . | . . . Matter . | . . . Time . | . . . Total Robot Build Rating . | . . . Part Schematics Acquired . | . . . Parts Built . | . . . Matter . | . . . Time . | . . . Total Part Build Rating . | . . . Parts Repaired 2 | . 2 . Time 52 | . 52 . Parts Recycled . | . . . Recycled Matter . | . . . Retrieved Matter . | . . . Retrieved Components 7 | . 7 . Parts Scanalyzed . | . . . Part Schematics Acquired . | . . . Parts Damaged . | . . . Bothacking | -11 -10 -10 ------------ Run | Scr Mat Min Used RIF Installer . | . . . Robots Hacked . | . . . Non-combat . | . . . Combat . | . . . Robot Hacks Applied . | . . . Relay Couplers Released . | . . . Robots Rewired . | . . . Allies Hacked . | . . . Hacks Repelled . | . . . Allies | -11 -10 -10 -------- Run | Scr Mat Min Total Allies 3 | . 1 2 Largest Group 3 | . 1 3 Highest-Rated Group 51 | . 10 51 Highest-Rated Ally 31 | . 10 31 Total Orders . | . . . Ally Attacks 6 | . . 6 Total Damage 106 | . . 106 Kills 1 | . . 1 Allies Corrupted . | . . . Allies Melted . | . . . Intel | -11 -10 -10 ------- Run | Scr Mat Min Robot Analysis Total 3 | . 3 . Derelict Logs Recovered 1 | . . 1 Drone Launches . | . . . Drone Recoveries . | . . . Exploration | -11 -10 -10 ------------- Run | Scr Mat Min Turns Passed 1567 | 41 1094 432 Spaces Moved 720 | 45 479 196 Core 81 | 45 36 . Treads 639 | . 443 196 Legs . | . . . Wheels . | . . . Hover . | . . . Flight . | . . . Fastest Speed 50 | 50 50 160 Average Speed 158 | 50 160 179 Slowest Speed 180 | 50 180 180 Overloaded Moves . | . . . Propulsion Burnouts . | . . . Robots Hopped . | . . . Cave-ins Triggered . | . . . Exploration Rate (%) 40 | 4 79 38 Regions Visited 2 Branch Regions 1 Pre-discovered Areas . | . . . Known Exits Taken 1 | . 1 . Unknown Exits Taken 1 | 1 . . Scrap Searched . | . . . Spaces Dug . | . . . Terrain Destroyed 81 | . . 81 Melee . | . . . Projectile . | . . . AOE 81 | . . 81 Terrain Rammed . | . . . Walls Destroyed . | . . . Machines Disabled . | . . . Actions | -11 -10 -10 --------- Run | Scr Mat Min Total 970 | 56 668 246 Wait 86 | . 77 9 Move 718 | 44 478 196 Hop . | . . . Pick Up 26 | 5 18 3 Fast Attach 9 | 2 4 3 Attach 9 | 2 5 2 Detach . | . . . Swap 14 | . 7 7 Drop 16 | . 9 7 Fire 92 | 3 70 19 Melee . | . . . Ram . | . . . Kick . | . . . Crush . | . . . Escape Stasis . | . . . Rewire . | . . . Trap . | . . . Miscellaneous . | . . . Route ------- -11/Scrapyard -10/Materials (discovered 5 exits: *Mat x3 / *Min x2) -10/Mines History --------- Turn | Location | Event 8 | -11/Scrapyard | Discovered new exit (range 16) 42 | -11/Scrapyard | Entered Materials 271 | -10/Materials | Discovered new exit (range 16) 276 | -10/Materials | Central database locked down 314 | -10/Materials | Build established: Mutant 508 | -10/Materials | Discovered new exit (range 16) 661 | -10/Materials | Discovered new exit (range 5) 814 | -10/Materials | Identified exit to Mines 814 | -10/Materials | Identified exit to Materials 921 | -10/Materials | Repaired Assault Rifle 948 | -10/Materials | Repaired Lgt. Treads 1136 | -10/Materials | Entered Mines 1136 | -10/Mines | Accompanied by 1 ally 1139 | -10/Mines | Met a Derelict bent on vengeance 1204 | -10/Mines | Met a Derelict shopkeep closing up shop 1265 | -10/Mines | Assembled infested the area 1347 | -10/Mines | Destroyed 14 combat bots 1395 | -10/Mines | Core integrity fell below 50% 1491 | -10/Mines | Learned Materials non-interactive machine intel 1553 | -10/Mines | Core integrity fell below 20% 1568 | -10/Mines | Destroyed by D-53 Grenadier with Mini Grenade Launcher Last Messages --------------- 01471_ Acquired 22 matter. 01491_ Acquired derelict log, extracted data. Data stored: Materials non-interactive machine intel. 01514_ Acquired 23 matter. 01516_ Acquired 8 matter. 01536_ K-01 Serf collects debris. 01549_ The unstable cave ceiling collapses. 01550_ K-01 Serf collects debris. 01552_ The unstable cave ceiling collapses. 01552_ Lgt. Treads destroyed. 01552_ D-53 Grenadier destroyed. 01552_ K-01 Serf destroyed. 01560_ Lgt. Deuterium Engine destroyed. 01560_ EM Pulse Gun destroyed. 01561_ The unstable cave ceiling collapses. 01562_ Lgt. Assault Rifle destroyed. 01564_ Lgt. Treads destroyed. 01566_ The unstable cave ceiling collapses. 01566_ Lgt. Treads destroyed. 01567_ The unstable cave ceiling collapses. Map ----- +----------------------------------------------------+ | ##?????# ###???????????????????????????? | | ######## ###????????????????????????????? | | ###????????????????????????????? | | ###### #?????????????????? | | #### #?????????????????? | | ##### !! #??????????????????? | | !! #??????????????????? | | ! ##??????????????????? | | ######### # ! ###???????????????????? | | ######???????# ## ##?????????????????????? | | #???????????? ##?#########????????????????????? | | ##########???# ##??????# #????????????????????? | | ## ###?# #????### ####?????????????????? | | ### #????# %**%= !!%=* ??????????? | | #### ## #????#=#= # ###?????????????????? | | ?## ## ??### ## ????????????????????? | | ?# =[ #### ## #?#####???????????????????? | | ?## ##??# ###?????????????????????????? | | ?## ######???#### #???????????????????????????? | | ## ##?????????### ###?????????????????????????? | | #?????????## ####??????????????????????? | | #????????## ####???????????????????? | | ##???????# ##??????????????????? | | #####???# # #??????????????????? | | = ##### ## #????????? | | ! @d #????????? | | #?????????????? | | r ### ##?????????????? | | = # # #???????????????????? | | *! * ### ## ##???????????????????? | | * #######?###????????????????????? | | #?????????????????????????????? | | ######## #????????????????????????????? | | ##??????## #????????????????????????????? | | ##?????????# ##????????????????????????????? | | ##???????????###?????????????????????????????? | | #????????????????????????????????????????????? | | ????????????????????????????????????????????? | | ????????????????????????????????????????????? | | ????????????????????????????????????????????? | | ## ????????????????????????????????????????????? | | ?## ?????????????????????????????????????????????? | | ???#?????????????????????????????????????????????? | | ?????????????????????????????????????????????????? | | ?????????????????????????????????????????????????? | | ?????????????????????????????????????????????????? | | ?????????????????????????????????????????????????? | | ?????????????????????????????????????????????????? | | ?????????????????????????????????????????????????? | | ?????????????????????????????????????????????????? | +----------------------------------------------------+ Best States ------------- Heat Dissipation 25 Energy Generation 14 Energy Capacity 250 Matter Stores 300 Matter Capacity 300 Sight Range 16 Terrain Scan Density 10 Propulsion Shielding 33 Weapon Shielding 33 Evasion (%) 50 Recoil Reduction 2 Item Schematics ----------------- None Robot Schematics ------------------ None Fabricated ------------ Nothing Alien Tech Used ----------------- None Achievements -------------- None Challenges ------------ None Game ------ Seed LaserFortressFlail Manual? 0 Play Time 00:16:23 Cumulative 307.4 hours Start 2021.06.12 @ 11:42:44 End 2021.06.12 @ 11:55:45 Sessions 1 Manual Loads 0 Difficulty Rogue Special Mode None Game No. 267 Rogue 267 Adventurer 0 Explorer 0 Win Type - Total 1 Types 0/0/0/1/0/0/0/0/0 Lore% 67 Gallery% 77 Achievement% 58 Wizard Run 0 Options --------- ASCII 0 Keyboard 1 Movement Numpad Keybinds 0 Fullscreen 1 Font 12/Terminus Map View 83x54 Tactical HUD 1 Map Filters NONE Filters NONE Steam 1 RUN: 07ac781e-93df-4486-b2be-3263c42b66a9